bitfinex-derivatives/quotes_BTCF0:USTF0_20251214
["timestamp","ask_amount","ask_price","bid_price","bid_amount"]
[1765750630196,0.38913695,88523.0,88522.0,0.06286]
[1765750633299,0.02833695,88523.0,88522.0,0.06286]
[1765750634502,0.05565695,88523.0,88522.0,0.06286]
[1765750634904,0.02833695,88523.0,88522.0,0.06286]
[1765750636104,0.02833695,88523.0,88522.0,0.06186]
[1765750636906,0.02833695,88523.0,88522.0,0.06086]
[1765750637302,0.02833695,88523.0,88522.0,0.76662]
[1765750637607,0.05565695,88523.0,88522.0,0.76462]
[1765750637808,0.05565695,88523.0,88522.0,0.76662]
[1765750638201,0.08508695,88523.0,88522.0,0.76662]
[1765750638800,0.08508695,88523.0,88522.0,0.76562]
[1765750639107,0.08508695,88523.0,88522.0,0.76662]
[1765750640205,0.09638245,88523.0,88522.0,0.003]
[1765750641909,0.09638245,88523.0,88522.0,0.001]
[1765750642605,0.05675,88517.0,88516.0,0.0691564]
[1765750642812,0.41755,88517.0,88516.0,0.0691564]
[1765750643000,0.44589369,88517.0,88516.0,0.0691564]
[1765750643703,0.07424,88516.0,88515.0,0.00011325]
[1765750643908,0.10258369,88516.0,88515.0,0.00011325]
[1765750644917,0.10258369,88516.0,88515.0,0.00111325]
[1765750645916,0.10258369,88516.0,88515.0,0.05897325]
[1765750648020,0.10258369,88516.0,88515.0,0.00111325]
[1765750648920,0.40663369,88516.0,88508.0,0.0112974]
[1765750649126,0.05698,88509.0,88508.0,0.0400474]
[1765750649319,0.05698,88509.0,88508.0,0.0112974]
[1765750649514,0.05698,88507.0,88506.0,0.70576]
[1765750649721,0.08529308,88507.0,88506.0,0.70576]
[1765750649922,0.05698,88501.0,88500.0,0.0112984]
[1765750650129,0.05698,88501.0,88498.0,0.00016949]
[1765750650130,0.05698,88499.0,88498.0,0.00016949]
[1765750650425,0.41778,88499.0,88498.0,0.00016949]
[1765750650928,0.44673243,88499.0,88498.0,0.00016949]
[1765750651126,0.44673243,88499.0,88482.0,0.0582]
[1765750651127,0.01668,88485.0,88482.0,0.0582]
[1765750651324,0.05698,88483.0,88482.0,0.02875]
[1765750651826,0.05698,88483.0,88482.0,0.0400508]
[1765750652219,0.05698,88479.0,88478.0,0.0582]
[1765750652424,0.41778,88479.0,88478.0,0.0582]
[1765750653224,0.05698,88479.0,88478.0,0.0582]
[1765750653419,0.3608,88488.0,88487.0,0.0685301]
[1765750653420,0.41962,88488.0,88487.0,0.0685301]
[1765750654618,0.39014,88488.0,88487.0,0.0685301]
[1765750654818,0.41962,88488.0,88487.0,0.0685301]
[1765750655020,0.42062,88488.0,88487.0,0.0725301]
[1765750656433,0.42062,88488.0,88487.0,0.0755301]
[1765750658727,0.42062,88488.0,88487.0,0.007]
[1765750658929,0.42062,88488.0,88487.0,0.06423]
[1765750662740,0.001,88488.0,88487.0,0.06423]
[1765750664540,0.3608,88499.0,88490.0,0.07457]
[1765750664941,0.3608,88509.0,88490.0,0.07457]
[1765750665641,0.3608,88509.0,88490.0,0.07957]
[1765750665840,0.00116949,88491.0,88490.0,0.07957]
[1765750666041,0.41962,88509.0,88508.0,0.0685275]
[1765750666345,0.3608,88519.0,88518.0,0.0685262]
[1765750666346,0.41962,88519.0,88518.0,0.0685262]
[1765750667035,0.3608,88519.0,88518.0,0.0685262]
[1765750667241,0.05898949,88527.0,88526.0,0.0685252]
[1765750667648,0.00016949,88527.0,88526.0,0.0685252]
[1765750668342,0.05898949,88527.0,88526.0,0.0685252]
[1765750668848,0.02950949,88527.0,88526.0,0.0685252]
[1765750669348,0.00016949,88527.0,88526.0,0.0685252]
[1765750669547,0.00016949,88527.0,88526.0,0.0715252]
[1765750669943,0.00016949,88527.0,88526.0,0.0705252]
[1765750670156,0.05898949,88527.0,88526.0,0.0705252]
[1765750670343,0.00016949,88527.0,88526.0,0.0705252]
[1765750673139,0.41912959,88537.0,88536.0,0.0841939]
[1765750675045,0.05882,88537.0,88536.0,0.0841939]
[1765750675245,0.06082,88537.0,88536.0,0.09591049]
[1765750675644,0.002,88537.0,88536.0,0.09591049]
[1765750676153,0.001,88537.0,88536.0,0.09591049]
[1765750677753,0.36096949,88545.0,88544.0,0.0698529]
[1765750677954,0.36096949,88545.0,88544.0,0.7766129]
[1765750678153,0.00016949,88545.0,88544.0,0.7766129]
[1765750679358,0.00116949,88545.0,88544.0,0.7806129]
[1765750681251,0.05825949,88545.0,88544.0,0.76932]
[1765750681445,0.05825949,88545.0,88544.0,0.73941]
[1765750681653,0.05825949,88545.0,88544.0,0.71376]
[1765750682562,0.05725949,88545.0,88544.0,0.70976]
[1765750682763,0.05825949,88545.0,88544.0,0.007]
[1765750683257,0.05825949,88545.0,88544.0,0.006]
[1765750684450,0.0292,88537.0,88536.0,0.00016949]
[1765750684649,0.41789,88537.0,88536.0,0.00016949]
[1765750685653,0.41889,88537.0,88536.0,0.00516949]
[1765750685851,0.41889,88537.0,88536.0,0.00916949]
[1765750689856,0.41889,88537.0,88517.0,0.05856]
[1765750689857,0.01663,88518.0,88517.0,0.05856]
[1765750690058,0.05709,88519.0,88518.0,0.0698562]
[1765750690764,0.05709,88516.0,88515.0,0.38724]
[1765750691853,0.05709,88516.0,88515.0,0.32868]
[1765750692062,0.05909,88516.0,88515.0,0.34668]
[1765750693564,0.05909,88516.0,88515.0,0.018]
[1765750693758,0.08870594,88516.0,88515.0,0.018]
[1765750693960,0.05709,88508.0,88507.0,0.00016949]
[1765750694164,0.41789,88508.0,88507.0,0.00016949]
[1765750695052,0.44751161,88508.0,88507.0,0.00016949]
[1765750695263,0.44851161,88508.0,88507.0,0.00216949]
[1765750695466,0.01663,88494.0,88489.0,0.0112999]
[1765750695664,0.05709,88490.0,88489.0,0.0399499]
[1765750695963,0.05709,88490.0,88489.0,0.0698599]
[1765750697955,0.05809,88490.0,88489.0,0.0828599]
[1765750698167,0.05809,88490.0,88489.0,0.0898599]
[1765750698968,0.06009,88490.0,88489.0,0.0898599]
[1765750699764,0.06009,88490.0,88489.0,0.02]
[1765750700972,0.05909,88490.0,88489.0,0.007]
[1765750701169,0.05709,88480.0,88479.0,0.76548]
[1765750702671,0.05709,88480.0,88479.0,0.70692]
[1765750703068,0.05709,88474.0,88473.0,0.07070174]
[1765750704371,0.05809,88474.0,88473.0,0.08470174]
[1765750704673,0.05809,88474.0,88473.0,0.07256]
[1765750705160,0.06009,88474.0,88473.0,0.07956]
[1765750705870,0.06009,88474.0,88473.0,0.04965]
[1765750706477,0.06009,88474.0,88473.0,0.07956]
[1765750707682,0.06009,88474.0,88473.0,0.021]
[1765750707975,0.05909,88474.0,88473.0,0.007]
[1765750708173,0.06009,88474.0,88473.0,0.018]
[1765750709078,0.06009,88474.0,88473.0,0.04583]
[1765750709279,0.06009,88474.0,88473.0,0.07336]
[1765750709674,0.06009,88474.0,88473.0,0.018]
[1765750709879,0.06009,88474.0,88473.0,0.04583]
[1765750710080,0.06009,88474.0,88473.0,0.07336]
[1765750714578,0.003,88474.0,88473.0,0.07336]
[1765750715184,0.05977,88474.0,88473.0,0.07336]
[1765750715884,0.0315,88474.0,88473.0,0.07336]
[1765750716283,0.003,88474.0,88473.0,0.07336]
[1765750718577,0.0315,88474.0,88473.0,0.07336]
[1765750718781,0.05977,88474.0,88473.0,0.07336]
[1765750719282,0.0315,88474.0,88473.0,0.07336]
[1765750719482,0.05977,88474.0,88473.0,0.07336]
[1765750720187,0.08984854,88474.0,88473.0,0.07336]
[1765750727484,0.08984854,88474.0,88473.0,0.018]
[1765750727788,0.08984854,88474.0,88473.0,0.07336]
[1765750729091,0.08984854,88474.0,88473.0,0.018]
[1765750729590,0.51111268,88474.0,88473.0,0.018]
[1765750730692,0.45064854,88474.0,88473.0,0.04583]
[1765750731698,0.45064854,88474.0,88473.0,0.018]
[1765750732992,0.44864854,88474.0,88473.0,0.012]
[1765750733187,0.44864854,88474.0,88473.0,0.004]
[1765750733492,0.44964854,88474.0,88473.0,0.004]
[1765750733985,0.44964854,88474.0,88473.0,0.03183]
[1765750734386,0.44964854,88474.0,88473.0,0.05936]
[1765750734585,0.0680733,88462.0,88450.0,0.0179]
[1765750734785,0.45895184,88462.0,88452.0,0.01163353]
[1765750735290,0.51970648,88462.0,88450.0,0.0292048]
[1765750735690,0.05677,88451.0,88450.0,0.05536]
[1765750735893,0.44764854,88451.0,88450.0,0.05536]
[1765750736684,0.44775939,88451.0,88450.0,0.05536]
[1765750736884,0.0582,88441.0,88440.0,0.07744]
[1765750737187,0.08827854,88441.0,88440.0,0.07744]
[1765750737387,0.08827854,88441.0,88440.0,0.05954]
[1765750737700,0.08827854,88441.0,88435.0,0.02998]
[1765750737701,0.0397567,88436.0,88435.0,0.02998]
[1765750737893,0.0582,88434.0,88433.0,0.03020616]
[1765750738197,0.44907854,88434.0,88433.0,0.05976616]
[1765750739691,0.45107854,88434.0,88433.0,0.06276616]
[1765750739886,0.45307854,88434.0,88433.0,0.07776616]
[1765750740491,0.423,88434.0,88433.0,0.07776616]
[1765750742295,0.3648,88434.0,88433.0,0.07776616]
[1765750742598,0.004,88434.0,88433.0,0.07776616]
[1765750743595,0.3608,88443.0,88442.0,0.05954]
[1765750743794,0.41916959,88449.0,88448.0,0.05954]
[1765750744093,0.36096959,88449.0,88448.0,0.05954]
[1765750744290,0.00016959,88449.0,88448.0,0.05954]
[1765750744486,0.00016959,88449.0,88440.0,0.37832]
[1765750744487,0.0582,88441.0,88440.0,0.43786]
[1765750745096,0.0582,88441.0,88440.0,0.07706]
[1765750745597,0.41916959,88449.0,88448.0,0.05954]
[1765750745994,0.06036959,88449.0,88448.0,0.07154]
[1765750746596,0.05836959,88449.0,88448.0,0.05954]
[1765750747196,0.00116959,88449.0,88448.0,0.06754]
[1765750747398,0.00216959,88449.0,88448.0,0.07354]
[1765750748300,0.06036959,88449.0,88448.0,0.07354]
[1765750748507,0.00216959,88449.0,88448.0,0.07354]
[1765750751295,0.03061959,88449.0,88448.0,0.07354]
[1765750751911,0.06036959,88449.0,88448.0,0.07354]
[1765750752211,0.42116959,88449.0,88448.0,0.07354]
[1765750753416,0.03061959,88449.0,88448.0,0.07354]
[1765750753613,0.00216959,88449.0,88448.0,0.07354]
[1765750753807,0.06036959,88449.0,88448.0,0.07354]
[1765750754518,0.03061959,88449.0,88448.0,0.07354]
[1765750755021,0.06036959,88449.0,88448.0,0.07354]
[1765750755321,0.03061959,88449.0,88448.0,0.07354]
[1765750755524,0.06036959,88449.0,88448.0,0.07354]
[1765750757423,0.00216959,88449.0,88448.0,0.07354]
[1765750757725,0.38925,88467.0,88466.0,0.05954]
[1765750758023,0.419,88467.0,88466.0,0.05954]
[1765750758921,0.419,88467.0,88466.0,0.06054]
[1765750759117,0.423,88467.0,88466.0,0.06054]
[1765750759323,0.424,88467.0,88466.0,0.06154]
[1765750761528,0.45276261,88467.0,88466.0,0.06154]
[1765750762628,0.424,88467.0,88466.0,0.06154]
[1765750763218,0.4527668,88467.0,88466.0,0.06154]
[1765750764711,0.39425,88467.0,88466.0,0.06154]
[1765750765025,0.424,88467.0,88466.0,0.06154]
[1765750768123,0.424,88467.0,88466.0,0.002]
[1765750768313,0.45276312,88467.0,88466.0,0.05848]
[1765750768514,0.424,88467.0,88466.0,0.05848]
[1765750769123,0.45276835,88467.0,88466.0,0.05848]
[1765750769713,0.424,88467.0,88466.0,0.05848]
[1765750772724,0.0632,88467.0,88466.0,0.05848]
[1765750775125,0.0632,88467.0,88466.0,0.002]
[1765750775833,0.0632,88467.0,88466.0,0.03103]
[1765750778537,0.424,88467.0,88466.0,0.03103]
[1765750781641,0.45258836,88467.0,88466.0,0.002]
[1765750781938,0.424,88467.0,88466.0,0.002]
[1765750782238,0.45259318,88467.0,88466.0,0.03103]
[1765750782940,0.45259318,88467.0,88466.0,0.002]
[1765750783737,0.45259318,88467.0,88466.0,0.03103]
[1765750783936,0.45259318,88467.0,88466.0,0.06057]
[1765750784136,0.45259318,88467.0,88466.0,0.002]
[1765750788444,0.45259318,88467.0,88466.0,0.03103]
[1765750790350,0.09179318,88467.0,88466.0,0.03103]
[1765750790543,0.45259318,88467.0,88466.0,0.03103]
[1765750790945,0.45259318,88467.0,88466.0,0.06057]
[1765750791140,0.09179318,88467.0,88466.0,0.002]
[1765750792348,0.09179318,88467.0,88466.0,0.03103]
[1765750792647,0.09179318,88467.0,88466.0,0.002]
[1765750795950,0.09179318,88467.0,88466.0,0.03103]
[1765750796450,0.09179318,88467.0,88466.0,0.002]
[1765750801257,0.0678137,88459.0,88458.0,0.00016959]
[1765750801444,0.45720688,88459.0,88458.0,0.00016959]
[1765750802358,0.45720688,88459.0,88458.0,0.02834959]
[1765750802859,0.45820688,88459.0,88458.0,0.03134959]
[1765750803253,0.45820688,88459.0,88458.0,0.00416959]
[1765750803454,0.46120688,88459.0,88458.0,0.00416959]
[1765750804949,0.05651,88451.0,88450.0,0.0113048]
[1765750805149,0.05651,88451.0,88450.0,0.05774]
[1765750805359,0.05651,88443.0,88442.0,0.40078]
[1765750806857,0.41747959,88451.0,88450.0,0.07477]
[1765750807057,0.41747959,88451.0,88450.0,0.0860749]
[1765750807458,0.41947959,88451.0,88450.0,0.0900749]
[1765750808165,0.41847959,88451.0,88450.0,0.0890749]
[1765750808367,0.42047959,88451.0,88450.0,0.0900749]
[1765750808757,0.42047959,88451.0,88450.0,0.07877]
[1765750808966,0.42047959,88451.0,88450.0,0.06174]
[1765750814472,0.42047959,88451.0,88450.0,0.004]
[1765750815469,0.44900141,88451.0,88450.0,0.004]
[1765750816366,0.08820141,88451.0,88450.0,0.004]
[1765750816566,0.44900141,88451.0,88450.0,0.004]
[1765750819173,0.44900141,88451.0,88450.0,0.03218]
[1765750819375,0.44900141,88451.0,88450.0,0.004]
[1765750822479,0.08820141,88451.0,88450.0,0.004]
[1765750822669,0.44900141,88451.0,88450.0,0.004]
[1765750831877,0.068556,88441.0,88440.0,0.17112537]
[1765750832071,0.068556,88441.0,88440.0,0.05605]
[1765750832669,0.0569,88434.0,88433.0,0.05588616]
[1765750832973,0.4177,88434.0,88433.0,0.05588616]
[1765750835180,0.02917,88441.0,88440.0,0.07206]
[1765750835380,0.0569,88441.0,88440.0,0.0833661]
[1765750835984,0.08557132,88441.0,88440.0,0.0833661]
[1765750836383,0.0589,88441.0,88440.0,0.0863661]
[1765750836980,0.0589,88441.0,88440.0,0.05866]
[1765750838183,0.08956995,88441.0,88440.0,0.06166]
[1765750838377,0.0609,88441.0,88440.0,0.06166]
[1765750838579,0.0609,88441.0,88440.0,0.07806]
[1765750844189,0.03117,88441.0,88440.0,0.07806]
[1765750844492,0.0609,88441.0,88440.0,0.07806]
[1765750852002,0.004,88441.0,88440.0,0.07806]
[1765750853200,0.03117,88441.0,88440.0,0.07806]
[1765750853906,0.0609,88441.0,88440.0,0.07806]
[1765750855404,0.004,88441.0,88440.0,0.07806]
[1765750858809,0.06046,88441.0,88440.0,0.07806]
[1765750859416,0.03175,88441.0,88440.0,0.07806]
[1765750859704,0.004,88441.0,88440.0,0.07806]
[1765750860510,0.03175,88441.0,88440.0,0.07806]
[1765750861211,0.06046,88441.0,88440.0,0.07806]
[1765750868618,0.004,88441.0,88440.0,0.07806]
[1765750869324,0.06046,88441.0,88440.0,0.07806]
[1765750870022,0.03175,88441.0,88440.0,0.07806]
[1765750871825,0.0310901,88441.0,88440.0,0.07806]
[1765750873124,0.0598001,88441.0,88440.0,0.07806]
[1765750873923,0.0033401,88441.0,88440.0,0.07806]
[1765750875114,0.0310901,88441.0,88440.0,0.07806]
[1765750875409,0.0598001,88441.0,88440.0,0.07806]
[1765750883127,0.0598001,88441.0,88440.0,0.06166]
[1765750883332,0.0598001,88441.0,88440.0,0.006]
[1765750883631,0.08849967,88441.0,88440.0,0.006]
[1765750884529,0.05646,88434.0,88433.0,0.00022616]
[1765750884731,0.41726,88434.0,88433.0,0.00022616]
[1765750885035,0.4459458,88434.0,88433.0,0.00022616]
[1765750885526,0.05646,88429.0,88428.0,0.46472]
[1765750885730,0.05646,88425.0,88424.0,0.0113081]
[1765750885933,0.41726,88425.0,88424.0,0.02311757]
[1765750886927,0.0167,88420.0,88419.0,0.0113088]
[1765750887124,0.07572,88420.0,88419.0,0.0113088]
[1765750888121,0.07772,88420.0,88419.0,0.0113088]
[1765750888327,0.05808,88415.0,88414.0,0.0708294]
[1765750888527,0.05808,88415.0,88414.0,0.08243828]
[1765750889239,0.05808,88415.0,88412.0,0.05]
[1765750889240,0.0693896,88413.0,88412.0,0.05]
[1765750889432,0.45879735,88413.0,88412.0,0.05]
[1765750889930,0.45879735,88413.0,88412.0,0.00889443]
[1765750890138,0.05808,88402.0,88401.0,0.0113111]
[1765750890536,0.05808,88402.0,88374.0,0.36386911]
[1765750890537,0.05808,88398.0,88397.0,0.01180494]
[1765750890738,0.05808,88397.0,88396.0,0.0113117]
[1765750891032,0.05820379,88397.0,88396.0,0.0113117]
[1765750891628,0.3608,88403.0,88387.0,0.11514579]
[1765750891629,0.3608,88403.0,88395.0,0.01702]
[1765750891823,0.00016969,88406.0,88395.0,0.01702]
[1765750891824,0.00016969,88406.0,88405.0,0.07654]
[1765750892034,0.3648,88413.0,88412.0,0.0708297]
[1765750892035,0.004,88413.0,88412.0,0.0708297]
[1765750892442,0.002,88413.0,88412.0,0.0708297]
[1765750892933,0.41888,88432.0,88431.0,0.0878473]
[1765750893531,0.00016969,88440.0,88439.0,0.0708263]
[1765750893532,0.02825969,88440.0,88439.0,0.0708263]
[1765750893840,0.00016969,88440.0,88439.0,0.0708263]
[1765750894035,0.05808,88461.0,88460.0,0.0708235]
[1765750894948,0.02809,88461.0,88460.0,0.0708235]
[1765750895441,0.05824959,88469.0,88468.0,0.0708226]
[1765750895636,0.02825959,88469.0,88468.0,0.0708226]
[1765750895840,0.3608,88480.0,88479.0,0.0708212]
[1765750895841,0.02809,88480.0,88479.0,0.0708212]
[1765750896035,0.05808,88488.0,88487.0,0.0708201]
[1765750896733,0.05808,88488.0,88487.0,0.02968]
[1765750896938,0.05808,88483.0,88482.0,0.0708207]
[1765750899343,0.06308,88483.0,88482.0,0.0708207]
[1765750899638,0.06708,88483.0,88482.0,0.06052]
[1765750899941,0.06608,88483.0,88482.0,0.06052]
[1765750900139,0.06208,88483.0,88482.0,0.05952]
[1765750900443,0.06708,88483.0,88482.0,0.06052]
[1765750901042,0.06808,88483.0,88482.0,0.06052]
[1765750902751,0.06308,88483.0,88482.0,0.06052]
[1765750902943,0.06808,88483.0,88482.0,0.06052]
[1765750903445,0.06308,88483.0,88482.0,0.05952]
[1765750903641,0.06908,88483.0,88482.0,0.06052]
[1765750904338,0.06808,88483.0,88482.0,0.06052]
[1765750906049,0.06308,88483.0,88482.0,0.06052]
[1765750906247,0.06808,88483.0,88482.0,0.06052]
[1765750906748,0.06708,88483.0,88482.0,0.06052]
[1765750907044,0.06708,88483.0,88482.0,0.001]
[1765750907237,0.06708,88483.0,88479.0,0.00016959]
[1765750907238,0.07217,88480.0,88479.0,0.00016959]
[1765750907648,0.05808,88480.0,88479.0,0.05968959]
[1765750908142,0.03909,88483.0,88482.0,0.06052]
[1765750908542,0.03509,88483.0,88482.0,0.06052]
[1765750908744,0.07008,88483.0,88482.0,0.06052]
[1765750909347,0.06985317,88483.0,88482.0,0.06052]
[1765750909737,0.06485317,88483.0,88482.0,0.06052]
[1765750909937,0.06885317,88483.0,88482.0,0.06052]
[1765750910133,0.06185317,88483.0,88482.0,0.05952]
[1765750910950,0.03186317,88483.0,88482.0,0.05952]
[1765750911149,0.03686317,88483.0,88482.0,0.06052]
[1765750913751,0.06685317,88483.0,88482.0,0.06052]
[1765750915840,0.06685317,88483.0,88482.0,0.001]
[1765750916554,0.05873,88465.0,88464.0,0.0113031]
[1765750917351,0.05873,88465.0,88464.0,0.0675931]
[1765750917947,0.06073,88465.0,88464.0,0.0695931]
[1765750918247,0.06073,88465.0,88464.0,0.08096767]
[1765750918447,0.06273,88465.0,88464.0,0.08096767]
[1765750918950,0.06573,88465.0,88464.0,0.08096767]
[1765750919452,0.06973,88465.0,88464.0,0.07896767]
[1765750920348,0.0398,88465.0,88464.0,0.07896767]
[1765750920947,0.011,88465.0,88464.0,0.07896767]
[1765750921147,0.00016959,88473.0,88464.0,0.07896767]
[1765750921148,0.00016959,88473.0,88472.0,0.0675921]
[1765750923246,0.00316959,88473.0,88472.0,0.0685921]
[1765750924148,0.00250968,88473.0,88472.0,0.0685921]
[1765750924357,0.00550968,88473.0,88472.0,0.0695921]
[1765750924851,0.03430968,88473.0,88472.0,0.0695921]
[1765750925050,0.06423968,88473.0,88472.0,0.0695921]
[1765750925354,0.09328058,88473.0,88472.0,0.0695921]
[1765750927452,0.06335058,88473.0,88472.0,0.0695921]
[1765750927954,0.09328058,88473.0,88472.0,0.0695921]
[1765750930855,0.10846058,88473.0,88472.0,0.002]
[1765750931263,0.46926058,88473.0,88472.0,0.002]
[1765750933763,0.05873,88463.0,88462.0,0.0407185]
[1765750933961,0.0877709,88463.0,88462.0,0.02927]
[1765750934263,0.0877709,88463.0,88462.0,0.05629]
[1765750934851,0.0877709,88463.0,88462.0,0.06767108]
[1765750935059,0.0887709,88463.0,88462.0,0.07067108]
[1765750935262,0.0897709,88463.0,88462.0,0.07067108]
[1765750936665,0.06473,88463.0,88462.0,0.07067108]
[1765750937164,0.06673,88463.0,88462.0,0.06967108]
[1765750937658,0.06373,88463.0,88462.0,0.06867108]
[1765750937865,0.06673,88463.0,88462.0,0.06967108]
[1765750938154,0.06573,88463.0,88462.0,0.06967108]
[1765750960173,0.007,88463.0,88462.0,0.06967108]
[1765750960563,0.41751959,88481.0,88480.0,0.083531]
[1765750960762,0.4468145,88481.0,88480.0,0.083531]
[1765750962886,0.4558145,88481.0,88480.0,0.085531]
[1765750963393,0.4538145,88481.0,88480.0,0.084531]
[1765750963698,0.4518145,88481.0,88480.0,0.085531]
[1765750965396,0.4518145,88481.0,88480.0,0.068961]
[1765750967095,0.4518145,88481.0,88480.0,0.05766]
[1765750967494,0.0910145,88481.0,88480.0,0.05766]
[1765750968397,0.0910145,88481.0,88480.0,0.002]
[1765750968591,0.0909545,88481.0,88480.0,0.002]
[1765750969294,0.09072918,88481.0,88480.0,0.002]
[1765750976612,0.05592,88471.0,88470.0,0.1150126]
[1765750976811,0.05734,88469.0,88468.0,0.53388]
[1765750978311,0.05834,88469.0,88468.0,0.53488]
[1765750978915,0.05934,88469.0,88468.0,0.53688]
[1765750979213,0.05934,88469.0,88446.0,0.09146351]
[1765750979214,0.05734,88431.0,88430.0,0.3608]
[1765750979399,0.05734,88431.0,88421.0,0.10170696]
[1765750979400,0.05734,88422.0,88421.0,0.00013705]
[1765750979599,0.0686484,88422.0,88421.0,0.00013705]
[1765750979801,0.0686484,88422.0,88395.0,0.01676]
[1765750979802,0.05734,88401.0,88400.0,0.1881626]
[1765750980007,0.05734,88401.0,88400.0,0.05639]
[1765750980211,0.01464,88410.0,88391.0,0.1430126]
[1765750980212,0.05734,88392.0,88391.0,0.1430126]
[1765750980510,0.41814,88406.0,88405.0,0.028]
[1765750980709,0.44727883,88406.0,88405.0,0.05639]
[1765750981113,0.02978378,88406.0,88405.0,0.05639]
[1765750981314,0.05744378,88406.0,88405.0,0.05639]
[1765750981614,0.00010378,88406.0,88405.0,0.05639]
[1765750982114,0.00110378,88406.0,88405.0,0.05739]
[1765750982620,0.00310378,88406.0,88405.0,0.05839]
[1765750983725,0.3608,88417.0,88405.0,0.402]
[1765750984014,0.3608,88445.0,88444.0,0.05639]
[1765750984203,0.41814,88455.0,88454.0,0.05639]
[1765750984407,0.37562,88472.0,88456.0,0.01676]
[1765750984809,0.02968,88460.0,88459.0,0.0676936]
[1765750985017,5.629e-05,88471.0,88459.0,0.0676936]
[1765750985211,0.05739629,88471.0,88470.0,0.07315]
[1765750985810,0.05739629,88471.0,88470.0,0.05639]
[1765750986908,0.06139629,88471.0,88470.0,0.05739]
[1765750987410,0.06139629,88471.0,88470.0,0.029]
[1765750988111,0.06539629,88471.0,88470.0,0.03]
[1765750989622,0.06539629,88471.0,88470.0,0.002]
[1765750991420,0.06539629,88471.0,88470.0,0.03]
[1765750993122,0.06539629,88471.0,88470.0,0.002]
[1765750993320,0.06539629,88471.0,88470.0,0.05839]
[1765750994718,0.06539629,88471.0,88470.0,0.03]
[1765750995014,0.06539629,88471.0,88470.0,0.002]
[1765750999026,0.06539629,88471.0,88470.0,0.05839]
[1765751011330,0.06539629,88471.0,88470.0,0.002]
[1765751012233,0.06539629,88471.0,88470.0,0.03019]
[1765751013239,0.0942584,88471.0,88470.0,0.03019]
[1765751013438,0.0942584,88471.0,88470.0,0.05777]
[1765751020048,0.0942584,88471.0,88470.0,0.07514]
[1765751024344,0.0369184,88471.0,88470.0,0.07514]
[1765751025547,0.0666184,88471.0,88470.0,0.07514]
[1765751026345,0.0958484,88471.0,88470.0,0.07514]
[1765751030655,0.0958484,88471.0,88470.0,2.19634]
[1765751033158,0.0369184,88471.0,88470.0,2.19634]
[1765751033358,0.0666184,88471.0,88470.0,2.19634]
[1765751035158,0.0958484,88471.0,88470.0,2.19634]
[1765751035362,0.0369184,88471.0,88470.0,2.19634]
[1765751035754,0.0369184,88471.0,88470.0,2.19614]
[1765751035956,0.0666184,88471.0,88470.0,2.19614]
[1765751037164,0.06639509,88471.0,88470.0,2.19614]
[1765751037359,0.01362029,88471.0,88470.0,2.19614]
[1765751039872,0.07199029,88471.0,88470.0,2.1961]
[1765751040757,0.05837,88471.0,88470.0,2.1961]
[1765751040956,0.02861,88471.0,88470.0,2.1961]
[1765751041169,0.05837,88471.0,88470.0,2.1961]
[1765751041757,0.05837,88471.0,88470.0,0.07514]
[1765751041957,0.05837,88471.0,88470.0,0.3944]
[1765751042169,0.05837,88471.0,88470.0,0.70948]
[1765751042670,0.05837,88471.0,88470.0,0.73701]
[1765751042969,0.05837,88471.0,88470.0,0.78216]
[1765751044064,0.02877958,88473.0,88472.0,0.05489]
[1765751044261,0.05853958,88473.0,88472.0,0.05489]
[1765751045570,0.05853958,88473.0,88472.0,0.02753]
[1765751045872,0.05853958,88473.0,88472.0,0.76233]
[1765751046267,0.05853958,88473.0,88472.0,0.76433]
[1765751046573,0.06353958,88473.0,88472.0,0.76433]
[1765751047672,0.06153958,88473.0,88472.0,0.76333]
[1765751047972,0.06353958,88473.0,88472.0,0.76433]
[1765751049371,0.09147054,88473.0,88472.0,0.76433]
[1765751049867,0.08847054,88473.0,88472.0,0.76433]
[1765751050062,0.09147054,88473.0,88472.0,0.76433]
[1765751050773,0.09147054,88473.0,88472.0,0.002]
[1765751051172,0.09147054,88473.0,88472.0,0.02953]
[1765751051364,0.09147054,88473.0,88472.0,0.18453]
[1765751051565,0.09147054,88473.0,88472.0,0.2231921]
[1765751052674,0.06074158,88483.0,88472.0,0.2231921]
[1765751052675,0.42154158,88489.0,88482.0,0.05489]
[1765751052867,0.41917,88489.0,88488.0,0.05489]
[1765751053175,0.05837,88484.0,88483.0,0.3494706]
[1765751055474,0.02861,88484.0,88483.0,0.3494706]
[1765751055670,0.03161,88484.0,88483.0,0.3504706]
[1765751055875,0.003,88484.0,88483.0,0.3504706]
[1765751056372,0.003,88484.0,88483.0,0.05589]
[1765751056373,0.06137,88484.0,88483.0,0.05589]
[1765751056580,0.06137,88484.0,88483.0,0.6005506]
[1765751056878,0.05837,88484.0,88483.0,0.6005506]
[1765751057266,0.05937,88484.0,88483.0,0.6015506]
[1765751058268,0.05937,88484.0,88483.0,0.6005506]
[1765751058568,0.05937,88484.0,88483.0,0.6015506]
[1765751058768,0.05837,88484.0,88483.0,0.6005506]
[1765751058968,0.06037,88484.0,88483.0,0.6015506]
[1765751059378,0.03061,88484.0,88483.0,0.6015506]
[1765751059574,0.06037,88484.0,88483.0,0.6005506]
[1765751059774,0.06037,88484.0,88483.0,0.6015506]
[1765751061875,0.06037,88484.0,88483.0,0.05689]
[1765751062075,0.06037,88484.0,88483.0,0.76433]
[1765751063479,0.06037,88484.0,88483.0,0.76429]
[1765751063480,0.0716705,88484.0,88483.0,0.76429]
[1765751063678,0.0716705,88484.0,88483.0,0.05689]
[1765751063986,0.0716705,88484.0,88483.0,0.002]
[1765751064482,0.0716705,88484.0,88483.0,0.1626]
[1765751064683,0.09944067,88484.0,88483.0,0.1626]
[1765751066387,0.09944067,88484.0,88483.0,0.22011]
[1765751067687,0.08814017,88484.0,88483.0,0.22011]
[1765751068578,0.08814017,88484.0,88483.0,0.05951]
[1765751068777,0.08814017,88484.0,88483.0,0.46819]